bitfinex-derivatives/quotes_ETHF0:USTF0_20250804
["timestamp","ask_amount","ask_price","bid_price","bid_amount"]
[1754325227567,3.5034,3668.5,3668.3,0.54515]
[1754325227765,3.5034,3668.4,3668.3,0.54515]
[1754325228359,3.5034,3668.4,3668.3,2.33125]
[1754325228667,3.5034,3668.4,3668.3,2.97345]
[1754325228862,3.5034,3668.4,3668.3,2.33125]
[1754325229069,3.5034,3668.4,3668.3,2.97345]
[1754325229263,1.3121,3668.7,3668.6,0.54512]
[1754325229463,2.7284,3668.7,3668.6,2.97342]
[1754325230063,3.5034,3668.7,3668.6,2.97342]
[1754325230263,3.5034,3668.7,3668.6,2.33122]
[1754325231367,3.5034,3668.7,3668.6,1.83852]
[1754325231670,3.5034,3668.7,3668.6,0.54512]
[1754325232269,3.5034,3668.7,3668.6,1.83852]
[1754325232573,3.5034,3668.7,3668.6,2.33122]
[1754325233174,2.2335,3669.8,3669.7,1.05465]
[1754325233373,2.2335,3669.8,3669.7,2.97325]
[1754325233575,2.7284,3669.8,3669.7,0.54495]
[1754325234473,1.3121,3669.7,3669.5,0.54498]
[1754325234674,3.2078,3670.1,3669.7,0.54494]
[1754325234977,1.4163,3669.9,3669.8,0.54493]
[1754325235174,2.1913,3669.9,3669.8,0.54493]
[1754325235369,3.5034,3669.9,3669.8,0.54493]
[1754325236466,0.9214,3669.5,3669.2,3.2078]
[1754325236665,1.6533,3669.4,3669.3,1.05471]
[1754325236875,0.5319,3669.4,3669.3,3.91531]
[1754325237072,2.7284,3669.7,3669.6,1.45007]
[1754325237280,2.7284,3669.7,3669.6,2.78037]
[1754325237880,1.4163,3669.7,3669.5,0.54498]
[1754325238182,1.607,3669.4,3669.3,0.54501]
[1754325238483,3.5034,3669.4,3669.3,0.54501]
[1754325239275,4.0484,3669.4,3669.3,0.54501]
[1754325239885,3.5034,3669.4,3669.3,0.54501]
[1754325241178,1.4163,3669.4,3669.2,0.54502]
[1754325241396,3.5034,3669.3,3669.2,0.54502]
[1754325241609,2.0871,3668.8,3668.6,0.54512]
[1754325241887,3.5034,3668.7,3668.6,0.54512]
[1754325242086,0.3895,3668.3,3668.2,1.32888]
[1754325242383,0.3895,3668.3,3668.2,0.54518]
[1754325242384,3.5034,3668.3,3668.2,0.54518]
[1754325242780,1.96155,3667.8,3667.6,1.32896]
[1754325242981,1.3121,3667.6,3667.0,0.5466]
[1754325243183,2.0871,3667.3,3667.2,0.54532]
[1754325243379,1.3121,3667.2,3667.1,1.32903]
[1754325245783,3.5034,3667.2,3667.1,0.7837]
[1754325246585,2.7284,3667.2,3667.1,0.7837]
[1754325246893,2.7284,3667.2,3667.1,2.2354]
[1754325247092,5.9362,3667.6,3667.5,1.05498]
[1754325247285,2.7284,3667.6,3667.5,1.83868]
[1754325248290,0.5319,3667.6,3667.5,3.27338]
[1754325248593,2.7284,3667.6,3667.5,3.91558]
[1754325248895,2.7284,3667.6,3667.5,2.23408]
[1754325249086,2.7284,3667.6,3667.5,2.78068]
[1754325249981,2.7284,3667.6,3667.5,3.91558]
[1754325250181,2.1581,3667.6,3667.5,1.83868]
[1754325250392,2.714,3667.6,3667.5,2.20478]
[1754325250891,2.714,3667.6,3667.5,0.54528]
[1754325251194,3.5123,3667.6,3667.5,1.35308]
[1754325251991,2.714,3667.6,3667.5,2.81088]
[1754325252200,1.6533,3667.6,3667.5,3.96648]
[1754325252693,0.944,3667.9,3667.8,0.54524]
[1754325252897,5.396,3668.0,3667.9,3.4212]
[1754325253099,5.9008,3668.0,3667.9,3.4212]
[1754325253592,4.8401,3668.0,3667.9,3.4212]
[1754325253792,6.6991,3668.0,3667.9,1.3079]
[1754325254889,5.3449,3668.0,3667.9,2.7723]
[1754325255092,38.5951,3668.2,3668.1,2.2656]
[1754325255290,0.54502,3669.3,3668.0,0.54521]
[1754325255291,2.1371,3668.9,3668.8,0.8662]
[1754325255600,3.4913,3668.5,3668.4,1.35295]
[1754325255986,3.4913,3668.5,3668.4,0.54515]
[1754325256187,2.693,3668.5,3668.4,2.21915]
[1754325256393,1.0704,3668.8,3668.7,0.5451]
[1754325256590,2.693,3668.8,3668.7,0.5451]
[1754325256892,2.693,3668.8,3668.3,3.2078]
[1754325256893,3.4913,3668.7,3668.6,0.54511]
[1754325257294,3.4913,3668.7,3668.6,1.85301]
[1754325257895,2.693,3668.7,3668.6,2.21911]
[1754325258120,3.75285,3669.1,3669.0,1.41126]
[1754325258121,5.9008,3669.1,3669.0,1.41126]
[1754325258293,0.9026,3668.5,3668.4,2.31065]
[1754325258491,3.4913,3668.5,3668.4,2.21915]
[1754325258700,3.4913,3668.4,3668.3,0.54515]
[1754325259095,3.4913,3668.4,3668.3,1.35295]
[1754325259597,3.4913,3668.4,3668.3,1.85305]
[1754325260494,3.4913,3668.4,3668.3,1.3079]
[1754325260697,2.9865,3668.3,3668.2,0.54517]
[1754325260994,3.4913,3668.3,3668.2,0.54517]
[1754325261395,18.912,3668.5,3668.0,0.8078]
[1754325261396,3.4913,3668.1,3668.0,0.8078]
[1754325261595,3.4913,3668.1,3667.9,3.2078]
[1754325261795,3.4913,3668.0,3667.9,3.75301]
[1754325262102,2.693,3668.0,3667.9,6.01861]
[1754325262301,2.693,3668.0,3667.9,2.81081]
[1754325262606,2.693,3668.4,3668.3,2.81076]
[1754325262799,21.604,3668.4,3668.3,2.81076]
[1754325263104,0.7297,3668.7,3668.6,0.54512]
[1754325263301,19.6407,3668.7,3668.6,2.21912]
[1754325263496,3.2078,3669.0,3668.9,2.21907]
[1754325263699,3.2078,3669.4,3669.3,1.8995]
[1754325263893,3.2078,3669.4,3669.3,2.2656]
[1754325264099,1.2442,3669.7,3669.6,1.41117]
[1754325264396,20.1552,3669.7,3669.6,2.81057]
[1754325264598,1.2442,3669.7,3669.6,2.81057]
[1754325264794,0.7297,3669.7,3669.6,2.81057]
[1754325264993,22.1188,3669.8,3669.6,2.81057]
[1754325265198,22.8485,3669.8,3669.7,2.2656]
[1754325265397,21.604,3669.8,3669.7,2.2656]
[1754325266698,2.1882,3669.8,3669.7,2.2656]
[1754325266903,2.693,3670.2,3670.1,1.04499]
[1754325267212,21.601,3670.2,3670.1,1.04499]
[1754325267398,2.1371,3670.2,3670.1,2.81049]
[1754325267700,21.0451,3670.2,3670.1,2.81049]
[1754325267906,1.6323,3670.2,3670.1,2.81049]
[1754325268102,39.251,3670.5,3670.1,2.81049]
[1754325268103,39.9807,3670.5,3670.4,2.81045]
[1754325268422,18.908,3670.6,3670.4,0.54485]
[1754325268601,3.2078,3670.7,3670.1,1.36224]
[1754325268602,22.6707,3670.7,3670.6,1.94422]
[1754325269308,24.1952,3670.7,3670.6,0.54482]
[1754325269508,4.4934,3670.7,3670.6,1.35262]
[1754325269709,23.4004,3670.7,3670.6,1.35262]
[1754325269912,5.2882,3670.7,3670.6,1.35262]
[1754325270110,24.1932,3670.7,3670.6,1.35262]
[1754325270510,2.0804,3670.6,3670.5,0.54483]
[1754325270906,3.4878,3670.6,3670.5,0.54483]
[1754325271514,2.693,3670.6,3670.5,1.85273]
[1754325272217,20.5353,3670.6,3670.5,2.81043]
[1754325272714,21.596,3670.6,3670.5,2.21883]
[1754325273014,22.3908,3670.6,3670.5,1.85273]
[1754325273813,1.61526,3670.4,3670.3,0.5001]
[1754325274009,18.903,3670.6,3670.2,0.54487]
[1754325274010,3.4878,3670.3,3670.2,0.54487]
[1754325274311,21.595,3670.3,3670.2,1.85277]
[1754325274613,21.595,3670.3,3670.2,2.81047]
[1754325275211,1.9633,3671.0,3670.9,1.04488]
[1754325275411,1.9633,3671.0,3670.9,1.85268]
[1754325275412,20.8633,3671.0,3670.9,1.85268]
[1754325275616,22.3878,3671.0,3670.9,0.8078]
[1754325275911,0.54484,3670.5,3670.4,0.54484]
[1754325276117,22.3878,3670.5,3670.4,1.35264]
[1754325276810,21.593,3670.5,3670.4,2.81044]
[1754325277010,20.5323,3670.5,3670.4,2.81044]
[1754325277410,21.593,3670.5,3670.4,2.81044]
[1754325277716,21.593,3670.5,3670.4,1.85274]
[1754325277915,22.3878,3670.5,3670.4,1.85274]
[1754325278220,2.693,3670.0,3669.9,2.81052]
[1754325278518,21.593,3670.0,3669.9,2.81052]
[1754325282517,21.593,3670.0,3669.9,2.2656]
[1754325283117,20.5323,3670.0,3669.9,2.2656]
[1754325283314,1.13066,3670.4,3670.3,2.2214]
[1754325283315,0.7237,3670.4,3670.3,2.2214]
[1754325283518,20.1184,3670.4,3670.3,2.2214]
[1754325283820,20.4789,3670.4,3670.3,2.2214]
[1754325284211,19.6207,3670.4,3670.3,2.2214]
[1754325284422,18.897,3670.4,3670.3,2.2214]
[1754325284720,1.5819,3670.8,3670.7,2.2214]
[1754325284917,20.4779,3670.8,3670.7,2.2214]
[1754325285117,20.4779,3670.8,3670.7,2.76621]
[1754325286314,21.0637,3670.8,3670.7,2.2214]
[1754325286518,1.3095,3670.7,3670.2,3.2078]
[1754325286821,2.6636,3670.3,3670.2,5.97408]
[1754325287021,21.5586,3670.3,3670.2,5.97408]
[1754325287823,20.9728,3670.3,3670.2,5.97408]
[1754325288020,21.5586,3670.3,3670.2,5.97408]
[1754325288219,21.5586,3670.3,3670.2,5.37838]
[1754325288417,22.2934,3670.3,3670.2,5.00018]
[1754325288618,22.2934,3670.3,3670.2,4.51788]
[1754325289124,22.2934,3670.3,3670.2,5.00018]
[1754325289924,21.5586,3670.3,3670.2,5.97408]
[1754325290717,2.6636,3670.3,3670.2,5.97408]
[1754325290918,20.9718,3670.3,3670.2,5.97408]
[1754325291423,22.2924,3670.3,3670.2,3.2078]
[1754325291723,21.5576,3670.3,3670.2,5.4292]
[1754325292119,2.6636,3670.3,3670.2,5.4292]
[1754325292320,21.5566,3670.3,3670.2,5.4292]
[1754325292525,20.4749,3670.3,3670.2,5.4292]
[1754325293727,21.5566,3670.3,3670.2,5.4292]
[1754325294119,20.3352,3670.3,3670.2,5.4292]
[1754325294323,21.5566,3670.3,3670.2,5.4292]
[1754325294825,20.4749,3670.3,3670.2,5.4292]
[1754325295026,18.893,3670.3,3670.2,5.4292]
[1754325295323,20.4749,3670.3,3670.2,5.4292]
[1754325295632,21.5566,3670.3,3670.2,5.4292]
[1754325296422,21.5566,3670.3,3670.2,2.2214]
[1754325296831,1.2685,3670.8,3670.2,2.72311]
[1754325297129,21.66425809,3670.7,3670.6,1.6257]
[1754325297329,22.25005809,3670.7,3670.6,1.6257]
[1754325297824,22.98485809,3670.7,3670.6,0.7652]
[1754325298032,22.98485809,3670.7,3669.8,4.57015]
[1754325298033,2.6636,3670.4,3670.3,2.76626]
[1754325298227,21.5546,3670.4,3670.3,2.76626]
[1754325299330,2.6636,3669.9,3669.8,2.00114]
[1754325299525,21.5536,3669.9,3669.8,2.00114]
[1754325299923,21.5536,3669.9,3669.8,2.76634]
[1754325300424,22.2884,3669.9,3669.8,1.2475]
[1754325300629,22.2884,3669.9,3669.8,0.7652]
[1754325301028,22.2884,3669.9,3669.8,1.2475]
[1754325301223,22.2884,3669.9,3669.8,0.7652]
[1754325301425,22.2884,3669.9,3669.6,1.02726]
[1754325301426,1.3541,3669.7,3669.6,1.02726]
[1754325301626,21.5526,3669.7,3669.6,1.79246]
[1754325301826,21.5526,3669.7,3669.6,2.17066]
[1754325302022,5.8714,3670.1,3670.0,1.51881]
[1754325302223,22.0968,3670.1,3670.0,2.76631]
[1754325302427,1.3541,3669.9,3669.8,1.02723]
[1754325302633,22.2874,3669.9,3669.8,0.4823]
[1754325302835,1.3541,3669.6,3669.5,1.4562]
[1754325303131,21.5526,3669.6,3669.5,2.76639]
[1754325303336,20.4709,3669.6,3669.5,2.76639]
[1754325303631,21.5526,3669.6,3669.5,2.76639]
[1754325304433,20.4709,3669.6,3669.5,2.76639]
[1754325305122,21.5526,3669.6,3669.5,2.76639]
[1754325305533,20.4709,3669.6,3669.5,2.76639]
[1754325305829,19.2495,3669.6,3669.5,2.76639]
[1754325306031,19.9732,3669.6,3669.5,2.76639]
[1754325306823,0.5858,3669.9,3669.8,0.54494]
[1754325307028,0.4977,3670.1,3670.0,2.76631]
[1754325307226,19.3867,3670.1,3670.0,2.76631]
[1754325307532,0.4977,3670.1,3670.0,2.76631]
[1754325307730,19.3857,3670.1,3670.0,2.76631]
[1754325307924,1.2214,3670.3,3670.2,1.40538]
[1754325308121,1.2214,3670.3,3670.2,2.76628]
[1754325308122,20.1104,3670.3,3670.2,2.76628]
[1754325308520,21.5526,3670.3,3670.2,2.2214]
[1754325308924,22.2874,3670.3,3670.2,1.2475]
[1754325309228,1.3541,3670.0,3669.9,1.02722]
[1754325309423,21.5526,3670.0,3669.9,2.17062]
[1754325309629,21.5526,3670.0,3669.9,2.76632]
[1754325309829,3.44563,3669.9,3669.8,0.7652]
[1754325310026,3.94333,3669.9,3669.8,0.7652]
[1754325311228,3.94333,3669.9,3669.5,0.54498]
[1754325311229,0.54497,3669.7,3669.5,0.54498]
[1754325311533,2.0888,3669.4,3669.1,0.738]
[1754325311735,19.7632,3669.3,3669.2,1.2341]
[1754325311933,21.5752,3669.3,3669.2,1.2341]
[1754325312340,21.5752,3669.3,3669.2,2.1724]
[1754325312537,2.6882,3669.3,3669.2,2.1724]
[1754325312731,19.2445,3669.3,3669.1,0.54504]
[1754325312939,2.6882,3669.2,3669.1,2.71744]
[1754325313139,1.2313,3669.2,3669.1,2.71744]
[1754325313332,1.5888,3669.2,3669.1,2.71744]
[1754325313735,2.1075,3669.2,3669.1,2.71744]
[1754325313933,2.6882,3669.2,3669.1,2.71744]
[1754325314129,2.6882,3669.2,3669.1,0.738]
[1754325314336,21.5742,3669.2,3669.1,1.6134]
[1754325314536,21.5742,3669.2,3668.8,0.54508]
[1754325314738,19.4667,3669.2,3668.9,0.54506]
[1754325315032,1.5888,3669.0,3668.9,1.97946]
[1754325315433,3.23315,3669.8,3669.7,1.4344]
[1754325315640,22.12015,3669.8,3669.7,2.1724]
[1754325316336,22.85855,3669.8,3669.7,1.6685]
[1754325316547,3.4266,3669.4,3669.3,0.54501]
[1754325316741,2.0762,3669.3,3669.2,0.4961]
[1754325316945,3.4266,3669.2,3669.1,0.54504]
[1754325317446,3.4266,3669.2,3669.1,1.2341]
[1754325317636,3.4266,3668.9,3668.8,4.98698]
[1754325317840,3.4266,3668.8,3668.7,0.5451]
[1754325318742,1.3504,3668.7,3668.4,0.738]
[1754325318951,3.0691,3668.3,3668.2,0.54517]
[1754325319149,22.3126,3668.3,3668.2,2.28157]
[1754325319340,22.3126,3668.3,3668.2,1.77927]
[1754325319746,22.3126,3668.3,3668.2,1.2341]
[1754325320049,3.4266,3668.1,3668.0,1.7793]
[1754325320749,3.4266,3668.1,3668.0,1.2341]
[1754325321248,3.4266,3668.1,3667.9,3.75302]
[1754325321249,0.7384,3668.0,3667.9,3.75302]
[1754325321452,22.3136,3668.0,3667.9,3.2078]
[1754325321853,22.3136,3668.0,3667.8,0.54523]
[1754325322053,3.4266,3667.9,3667.8,1.77933]
[1754325322260,22.3126,3667.9,3667.8,1.77933]
[1754325322755,22.3126,3667.9,3667.8,1.2341]
[1754325323859,1.3504,3667.7,3667.6,0.54526]
[1754325324062,3.4266,3667.7,3667.6,1.77936]
[1754325324257,3.4266,3667.7,3667.6,2.66096]
[1754325324457,1.5888,3667.7,3667.6,2.66096]
[1754325324658,20.9935,3667.9,3667.8,2.28164]
[1754325324855,21.5742,3667.9,3667.8,2.66094]
[1754325325159,2.6882,3667.9,3667.8,2.66094]
[1754325325361,2.6882,3668.4,3668.3,2.66086]
[1754325325561,21.5752,3668.4,3668.3,2.66086]
[1754325325853,0.54516,3668.3,3668.0,0.5452]
[1754325326057,22.3136,3668.2,3668.1,1.2341]
[1754325326460,22.3126,3668.2,3668.1,2.1157]
[1754325326657,21.5742,3668.2,3668.1,2.1157]
[1754325327155,3.2078,3668.8,3668.1,2.74067]
[1754325327356,2.6882,3668.7,3668.6,2.66082]
[1754325327658,20.8181,3668.7,3668.6,2.66082]
[1754325327858,22.3136,3668.7,3668.6,1.2341]
[1754325328262,1.3504,3668.4,3668.3,1.77925]
[1754325328553,22.3136,3668.4,3668.3,1.77925]
[1754325328860,21.5752,3668.4,3668.3,2.66085]
[1754325329552,18.887,3668.4,3668.3,2.66085]
[1754325329756,21.5752,3668.4,3668.3,2.66085]
[1754325330259,1.9311,3668.9,3668.8,1.42049]
[1754325330458,20.9945,3668.9,3668.8,1.42049]
[1754325330662,22.3136,3668.9,3668.8,0.4961]
[1754325330862,22.3136,3668.9,3668.8,2.1157]
[1754325332060,2.6882,3668.9,3668.8,2.1157]
[1754325332259,20.4748,3668.9,3668.8,2.1157]
[1754325332562,5.896,3669.2,3669.1,2.66074]
[1754325332764,24.781,3669.2,3669.1,2.66074]
[1754325332959,4.7966,3669.2,3669.1,2.66074]
[1754325333169,23.6816,3669.2,3669.1,2.66074]
[1754325333367,24.781,3669.2,3669.1,2.66074]
[1754325333758,24.781,3669.2,3669.1,0.4961]
[1754325333964,3.4266,3669.0,3668.9,0.54507]
[1754325334165,22.3116,3669.0,3668.9,0.54507]
[1754325334668,22.3116,3669.0,3668.9,1.77917]
[1754325334864,22.3116,3669.0,3668.8,0.54508]
[1754325335165,3.4266,3668.7,3668.6,2.64972]
[1754325335467,20.5173,3668.7,3668.6,2.64972]
[1754325335863,22.3106,3668.7,3668.6,2.64972]
[1754325336068,22.3106,3668.7,3668.6,1.04122]
[1754325336269,22.3106,3668.7,3668.6,0.54512]
[1754325336463,22.3106,3668.7,3668.5,0.54512]
[1754325336665,2.0762,3668.6,3668.5,0.54512]
[1754325336865,3.4266,3668.6,3668.5,1.77922]
[1754325337362,3.4266,3668.5,3668.4,2.64974]
[1754325337564,20.9905,3668.5,3668.4,2.64974]
[1754325337769,20.4718,3668.5,3668.4,2.64974]
[1754325338369,21.5712,3668.5,3668.4,2.64974]
[1754325338571,22.3096,3668.5,3668.4,2.64974]
[1754325338765,22.3096,3668.5,3668.4,2.1046]
[1754325338969,22.3096,3668.5,3668.4,1.2341]
[1754325339171,22.3096,3668.5,3668.3,0.54515]
[1754325339372,3.4266,3668.4,3668.3,0.54515]
[1754325339567,3.4266,3668.4,3668.3,1.77925]
[1754325339976,3.4266,3668.4,3668.3,2.15855]
[1754325340273,3.4266,3668.4,3668.3,2.64975]
[1754325340475,1.5888,3668.4,3668.3,2.64975]
[1754325340772,2.0788,3669.0,3668.9,0.8605]
[1754325340974,20.9608,3669.0,3668.9,2.0748]
[1754325341274,21.4959,3669.0,3668.9,2.0748]
[1754325341471,2.6139,3669.0,3668.9,2.0748]
[1754325341671,20.9598,3669.0,3668.9,2.0748]
[1754325341872,1.5845,3669.3,3669.2,1.5876]
[1754325342074,1.5845,3669.6,3669.5,2.0748]
[1754325342271,20.4655,3669.6,3669.5,2.61979]
[1754325342471,22.2249,3669.6,3669.5,2.0748]
[1754325342665,22.2249,3669.6,3669.5,1.2115]
[1754325343072,0.4733,3668.7,3668.3,1.36289]
[1754325343278,3.3439,3668.7,3668.6,0.54512]
[1754325343774,2.6139,3668.7,3668.6,3.60292]
[1754325344873,20.4635,3668.7,3668.6,3.60292]
[1754325345378,22.2229,3668.7,3668.6,1.02952]
[1754325346080,22.2229,3668.7,3668.6,1.75662]
[1754325346975,22.2229,3668.7,3668.6,0.54512]
[1754325346976,21.4929,3668.7,3668.6,0.54512]
[1754325347171,3.3439,3668.3,3668.2,0.54518]
[1754325347477,3.3439,3668.2,3668.1,0.54518]
[1754325347875,1.3329,3668.2,3667.7,3.2078]
[1754325348076,22.2219,3668.1,3668.0,1.2115]
[1754325348475,22.2219,3668.1,3668.0,2.5838]
[1754325348681,2.6139,3668.4,3668.3,3.60296]
[1754325348876,18.878,3668.4,3668.3,0.54516]
[1754325349081,3.3439,3667.8,3667.7,4.96455]
[1754325349281,22.2209,3667.8,3667.7,3.6922]
[1754325349576,3.3439,3667.5,3667.3,3.7531]
[1754325349775,22.2209,3667.4,3667.3,3.2078]
[1754325349975,21.4909,3667.4,3667.3,2.0966]
[1754325350180,21.4909,3667.4,3667.3,3.0578]
[1754325350583,18.877,3667.4,3667.2,0.54532]
[1754325350882,3.3439,3667.0,3666.9,2.19324232]
[1754325351087,22.2219,3667.0,3666.9,2.19324232]
[1754325351980,21.4919,3667.0,3666.9,3.56554232]
[1754325352478,21.4909,3667.0,3666.9,3.56554232]
[1754325353079,21.4909,3667.0,3666.9,4.03954232]
[1754325357792,22.2209,3667.0,3666.9,3.56554232]
[1754325357993,22.2209,3667.0,3666.9,3.07834232]
[1754325358294,22.2209,3667.0,3666.9,3.56554232]
[1754325359295,22.2209,3667.0,3666.9,4.03954232]
[1754325359491,21.4909,3667.0,3666.9,4.03954232]
[1754325359794,4.7923,3667.5,3667.4,3.0578]
[1754325359991,5.8217,3667.5,3667.4,3.0578]
[1754325360192,18.879,3667.5,3667.4,3.0578]
[1754325360495,3.2078,3668.1,3667.9,3.12902]
[1754325360793,3.2078,3668.1,3668.0,3.0578]
[1754325360996,24.7007,3668.1,3668.0,3.0578]
[1754325361193,24.7007,3668.1,3668.0,1.2115]
[1754325361392,25.4307,3668.1,3668.0,1.2115]
[1754325361696,25.4307,3668.1,3668.0,2.5838]
[1754325361899,22.2219,3668.1,3668.0,3.0578]
[1754325362088,22.2219,3668.1,3668.0,2.5838]
[1754325362489,22.2219,3668.1,3668.0,3.0578]
[1754325362690,21.4919,3668.1,3668.0,3.0578]
[1754325363094,0.7459,3668.3,3668.2,2.1945]
[1754325363296,1.281,3668.4,3668.3,3.60296]
[1754325363491,20.158,3668.4,3668.3,3.60296]
[1754325363694,4.5407,3668.7,3668.6,1.02952]
[1754325363994,1.3329,3668.4,3668.3,1.02955]
[1754325364194,21.4909,3668.4,3668.3,3.12895]
[1754325364394,3.7021,3668.7,3668.6,0.4844]
[1754325364591,23.4177,3668.7,3668.6,0.4844]
[1754325364793,23.4177,3668.7,3668.6,1.2115]
[1754325364995,24.6987,3668.7,3668.6,1.2115]
[1754325365299,25.4287,3668.7,3668.6,1.2115]
[1754325365594,25.4287,3668.7,3668.1,0.54519]
[1754325365595,1.3329,3668.2,3668.1,0.54519]
[1754325365790,1.3329,3668.2,3667.9,0.7271]
[1754325365791,3.3439,3668.0,3667.9,1.75671]
[1754325366294,3.3439,3668.0,3667.9,1.02961]
[1754325366694,3.3439,3668.0,3667.8,3.2078]
[1754325366695,3.88915,3667.7,3667.6,0.54526]
[1754325366895,3.3439,3667.4,3667.3,1.75681]
[1754325367093,22.2189,3667.4,3667.3,3.60311]
[1754325367293,2.6139,3667.9,3667.8,0.4844]
[1754325367594,2.6139,3667.9,3666.9,4.18954232]
[1754325367595,1.5845,3667.2,3667.1,3.60314]
[1754325367790,18.874,3667.3,3667.1,3.60314]
[1754325367995,18.874,3667.3,3667.1,1.91484]
[1754325368196,20.4585,3667.3,3667.2,3.0578]
[1754325368399,21.4879,3667.3,3667.2,3.0578]
[1754325368606,2.6139,3667.3,3667.2,3.0578]
[1754325368898,21.4879,3667.3,3667.2,3.0578]
[1754325370496,0.4733,3667.3,3667.2,3.0578]
[1754325370700,2.6052,3667.9,3667.8,2.5274]
[1754325371004,3.3577,3668.3,3668.2,1.1987]
[1754325371201,21.4792,3668.3,3668.2,2.9785]
[1754325371397,3.3577,3668.3,3668.2,2.9785]
[1754325371904,22.2317,3668.3,3668.2,2.9785]
[1754325372095,21.4782,3668.3,3668.2,2.9785]
[1754325372297,2.6052,3668.3,3668.2,2.9785]
[1754325372498,21.4782,3668.3,3668.2,2.9785]
[1754325372796,2.6052,3668.3,3668.2,2.9785]
[1754325372998,21.4782,3668.3,3668.2,2.9785]
[1754325373398,22.2307,3668.3,3668.2,2.5274]
[1754325374098,22.2307,3668.3,3668.2,2.9785]
[1754325374298,21.4782,3668.3,3668.2,2.9785]
[1754325374493,18.873,3668.3,3668.2,2.9785]
[1754325374801,1.8919,3668.6,3668.5,1.90363]
[1754325375003,21.4772,3668.6,3668.5,3.52363]
[1754325375500,21.4762,3668.6,3668.5,3.52363]
[1754325375699,22.2287,3668.6,3668.5,3.52363]
[1754325377203,22.2287,3668.6,3668.5,3.05363]
[1754325378398,21.4762,3668.6,3668.5,3.52363]
[1754325378599,2.097,3668.6,3668.5,3.52363]
[1754325378900,21.4742,3668.6,3668.5,3.52363]
[1754325379399,2.6052,3668.6,3668.5,3.52363]
[1754325379704,1.2215,3668.6,3668.5,3.52363]
[1754325380398,2.0567,3669.0,3668.9,0.90277]
[1754325380602,5.0997,3669.2,3669.1,2.60244]
[1754325380806,21.5124,3669.2,3669.1,1.74374]
[1754325381110,22.2257,3669.2,3669.1,1.74374]
[1754325381300,22.2257,3669.2,3669.1,2.57144]
[1754325381500,22.2257,3669.2,3669.1,1.74374]
[1754325381699,22.2257,3669.2,3669.1,1.04484]
[1754325381900,22.2257,3669.2,3669.1,3.07244]
[1754325383697,2.8495,3669.1,3669.0,0.54505]
[1754325383897,3.3577,3669.1,3669.0,0.54505]
[1754325384094,3.3577,3668.9,3668.8,0.54508]
[1754325384403,22.2227,3668.9,3668.8,0.54508]
[1754325384700,21.4702,3668.9,3668.8,0.54508]
[1754325384905,2.0567,3668.1,3668.0,5.56261]
[1754325385104,3.3577,3668.1,3668.0,5.58151]
[1754325385493,2.6052,3668.1,3668.0,6.73151]
[1754325385698,1.5891,3668.1,3668.0,6.73151]
[1754325386298,0.5082,3668.1,3668.0,6.73151]
[1754325386600,20.4541,3668.2,3668.1,2.9785]
[1754325387503,21.4702,3668.2,3668.1,2.9785]
[1754325387894,22.2227,3668.2,3668.1,2.0264]
[1754325388093,3.3577,3668.0,3667.9,1.74391]
[1754325388306,22.2207,3668.0,3667.9,1.74391]
[1754325388706,18.863,3668.0,3667.9,3.52371]
[1754325389106,3.7563,3668.4,3667.6,3.2078]
[1754325389107,3.2078,3668.4,3668.2,3.05368]
[1754325389402,5.2645,3669.1,3669.0,0.6795]
[1754325389709,24.879,3669.1,3669.0,1.1987]
[1754325389908,25.4275,3669.1,3669.0,1.1987]
[1754325390500,6.5655,3669.1,3669.0,1.1987]
[1754325390701,3.2078,3669.6,3669.1,1.36262]
[1754325390901,3.5754,3669.6,3669.5,2.03569]
[1754325391105,22.4374,3669.6,3669.5,2.03569]
[1754325391703,1.2618,3669.9,3669.5,2.03569]
[1754325391704,2.6052,3669.9,3669.8,1.22444]
[1754325391911,19.6962,3669.9,3669.8,2.03564]
[1754325392105,2.0567,3669.9,3669.8,2.03564]
[1754325392307,20.4481,3669.9,3669.8,2.03564]
[1754325393204,2.1376,3669.9,3669.8,2.03564]
[1754325393507,20.9966,3669.9,3669.8,2.03564]
[1754325393705,24.2044,3669.9,3669.8,2.03564]
[1754325394106,19.5723,3669.9,3669.8,2.03564]
[1754325394316,18.859,3669.9,3669.8,2.03564]
[1754325395117,2.6052,3670.2,3670.1,2.0356]
[1754325395322,21.4632,3670.2,3670.1,1.4907]
[1754325395622,22.2157,3670.2,3670.1,1.4907]
[1754325395816,21.4632,3670.2,3670.1,1.4907]
[1754325396217,20.2014,3670.2,3669.9,0.54492]
[1754325396522,3.3577,3670.0,3669.9,1.24382]
[1754325396716,6.017,3670.0,3669.7,0.1123]
[1754325396912,3.3577,3669.8,3669.7,1.1987]
[1754325397114,3.3577,3669.8,3669.7,1.74365]
[1754325397315,2.6052,3669.8,3669.7,2.03565]
[1754325398017,2.0567,3669.8,3669.7,2.03565]
[1754325398221,3.3577,3669.8,3669.7,1.74365]
[1754325399117,1.88835,3669.8,3669.5,0.54498]
[1754325399317,2.1768,3669.2,3669.1,1.74374]
[1754325399518,3.3577,3669.2,3669.1,2.03574]
[1754325399723,2.6052,3669.2,3669.1,2.03574]
[1754325400122,2.6052,3669.2,3669.1,2.03914]
[1754325401225,0.7133,3669.2,3669.1,2.05784]